bitfinex/quotes_ETHUSD_20220310
["timestamp","ask_amount","ask_price","bid_price","bid_amount"]
[1646896936622,0.05077661,2591.2,2590.9,0.00336756]
[1646896937424,0.05077661,2591.2,2590.8,1.38573381]
[1646896937827,0.05077661,2591.2,2590.9,0.0033675]
[1646896938627,0.96611,2591.3,2590.8,1.38573381]
[1646896938827,1.2039,2591.6,2590.9,0.7145]
[1646896938828,0.06146521,2591.5,2590.9,0.7145]
[1646896939026,0.06146521,2591.5,2590.9,0.71753075]
[1646896939674,0.06146521,2591.5,2590.9,3.61550995]
[1646896939872,0.06146521,2591.5,2591.0,0.3]
[1646896940074,0.96607,2591.4,2591.2,1.14015688]
[1646896940275,0.96607,2591.4,2591.2,1.44015688]
[1646896940978,1.1824,2592.1,2591.2,1.44015688]
[1646896940979,1.2405969,2592.1,2591.2,4.79255785]
[1646896941174,1.2405969,2592.1,2591.9,0.8670549]
[1646896941376,0.0581969,2592.1,2591.9,1.7229549]
[1646896941574,0.0581969,2592.1,2591.9,1.1559]
[1646896942380,1.93173,2592.2,2591.9,1.1559]
[1646896942381,0.96582,2592.0,2591.9,1.1559]
[1646896942582,0.0032705,2592.4,2591.9,1.1559]
[1646896943423,0.06005586,2592.5,2591.9,1.1559]
[1646896943623,0.06005586,2592.5,2592.1,1.16503926]
[1646896943822,0.00327065,2592.4,2592.1,1.46503926]
[1646896944626,0.96564,2592.5,2592.1,1.46503926]
[1646896945026,0.00327074,2592.4,2592.1,1.46503926]
[1646896945826,0.96564,2592.5,2592.1,1.46503926]
[1646896946228,0.00329403,2592.4,2592.1,1.46503926]
[1646896947078,0.96564,2592.5,2592.1,1.46503926]
[1646896947278,0.00329403,2592.4,2592.1,1.46503926]
[1646896948278,1.01720197,2592.5,2592.1,1.46503926]
[1646896948478,0.00329403,2592.4,2592.1,1.46503926]
[1646896949482,1.01720197,2592.5,2592.1,1.46503926]
[1646896949781,0.00328879,2592.4,2592.1,1.46503926]
[1646896950724,1.01720197,2592.5,2592.1,1.46503926]
[1646896950924,0.00328879,2592.4,2592.1,1.46503926]
[1646896952027,1.01720197,2592.5,2592.1,1.46503926]
[1646896952227,0.00328879,2592.4,2592.1,1.46503926]
[1646896953030,0.96564,2592.5,2592.1,1.46503926]
[1646896953429,0.00328997,2592.4,2592.1,1.46503926]
[1646896954268,0.96564,2592.5,2592.1,1.46394163]
[1646896954670,0.00328997,2592.4,2592.1,1.46394163]
[1646896955072,0.00328997,2592.4,2592.1,0.29890237]
[1646896955269,0.00328997,2592.4,2592.0,0.9657]
[1646896955470,1.01482091,2592.5,2592.0,0.9657]
[1646896955670,0.00328997,2592.4,2592.0,0.9657]
[1646896956071,0.00328997,2592.4,2592.0,1.9313729]
[1646896956471,0.00328997,2592.4,2592.2,0.91644377]
[1646896956676,1.01482091,2592.5,2592.2,0.91644377]
[1646896956876,0.00328965,2592.4,2592.2,3.90156377]
[1646896957075,0.00328965,2592.4,2592.2,4.20156377]
[1646896957877,0.06099569,2592.7,2592.2,4.20156377]
[1646896958128,0.06099569,2592.7,2592.6,1.09671855]
[1646896958325,1.0,2592.9,2592.6,1.39671855]
[1646896959331,1.002469,2592.9,2592.6,1.39671855]
[1646896960027,1.002469,2592.9,2592.6,3.32749855]
[1646896960232,1.0,2592.9,2592.6,3.32749855]
[1646896960531,1.00329308,2592.9,2592.6,3.32749855]
[1646896961431,1.0,2592.9,2592.6,3.32749855]
[1646896961773,1.00329308,2592.9,2592.6,3.32749855]
[1646896962575,1.0,2592.9,2592.6,3.32749855]
[1646896962976,1.00329308,2592.9,2592.6,3.32749855]
[1646896963977,1.0,2592.9,2592.6,3.32749855]
[1646896964177,1.00335808,2592.9,2592.6,3.32749855]
[1646896965078,1.0,2592.9,2592.6,3.32749855]
[1646896965278,1.00335808,2592.9,2592.6,3.32749855]
[1646896966322,1.0,2592.9,2592.6,3.32749855]
[1646896966522,1.00335808,2592.9,2592.6,3.32749855]
[1646896966927,0.05805637,2593.4,2592.7,119.0]
[1646896967229,0.05805637,2593.4,2592.9,0.96518]
[1646896967426,0.05805637,2593.4,2592.9,1.91128]
[1646896967629,0.05805637,2593.4,2592.9,2.21128]
[1646896968128,0.05805637,2593.4,2593.3,1.21058953]
[1646896968326,0.96522,2593.8,2593.3,1.51058953]
[1646896968529,0.05755797,2593.7,2593.3,1.51058953]
[1646896968928,0.06002477,2593.7,2593.3,1.51058953]
[1646896969374,0.06002477,2593.7,2593.3,2.47578403]
[1646896969574,0.06002477,2593.7,2593.3,7.77637941]
[1646896969775,0.05755797,2593.7,2593.3,7.77637941]
[1646896969979,0.05755797,2593.7,2593.3,8.00077941]
[1646896970184,1.93035,2594.0,2593.3,8.00077941]
[1646896970185,0.0024668,2593.6,2593.3,8.00077941]
[1646896970976,0.0490375,2593.9,2593.3,2.47578403]
[1646896971175,0.0490375,2593.9,2593.7,0.91104071]
[1646896971374,0.0490375,2593.9,2593.7,1.21104071]
[1646896972576,0.05251931,2593.9,2593.7,1.21104071]
[1646896973031,0.00348181,2593.9,2593.7,1.21104071]
[1646896973624,0.04961091,2594.2,2593.7,1.21104071]
[1646896973823,0.04961091,2594.2,2593.8,0.9649309]
[1646896973824,0.00348181,2593.9,2593.8,0.9649309]
[1646896974623,0.04961091,2594.2,2593.8,0.9649309]
[1646896974824,0.96496,2594.4,2593.9,1.92993]
[1646896975027,0.00348179,2594.0,2593.9,1.92993]
[1646896975225,0.00348179,2594.0,2593.9,2.22993]
[1646896976026,0.96496,2594.4,2594.2,0.99943724]
[1646896977077,0.96496,2594.4,2594.2,0.96489]
[1646896977276,0.96837795,2594.4,2594.2,0.96489]
[1646896978277,0.96496,2594.4,2594.2,0.96489]
[1646896978478,0.96837795,2594.4,2594.2,0.96489]
[1646896979078,0.96837795,2594.4,2594.2,1.26489]
[1646896979479,0.96496,2594.4,2594.2,1.26489]
[1646896979879,0.9682387,2594.4,2594.2,1.26489]
[1646896980720,0.96496,2594.4,2594.2,1.26489]
[1646896980922,0.9682387,2594.4,2594.2,1.26489]
[1646896981426,0.0032787,2594.4,2594.2,2.2297373]
[1646896982025,0.96485,2594.7,2594.2,1.26489]
[1646896982026,0.05323468,2594.6,2594.2,1.26489]
[1646896982225,0.0032787,2594.4,2594.2,1.26489]
[1646896983027,0.96492,2594.5,2594.2,1.26489]
[1646896983428,0.00329809,2594.4,2594.2,1.26489]
[1646896983828,0.02768137,2594.3,2594.1,1.34526357]
[1646896984773,0.0309795,2594.3,2594.1,1.34526357]
[1646896985573,0.02768137,2594.3,2594.1,1.34526357]
[1646896985774,0.0309795,2594.3,2594.1,1.34526357]
[1646896986776,0.02768137,2594.3,2594.1,1.34526357]
[1646896986977,0.03097513,2594.3,2594.1,1.34526357]
[1646896987379,0.03097513,2594.3,2594.1,9.10260624]
[1646896987576,0.03097513,2594.3,2594.2,0.555]
[1646896987776,0.03097513,2594.3,2594.2,1.3951]
[1646896988033,0.02768137,2594.3,2594.2,1.3951]
[1646896988222,0.03097513,2594.3,2594.2,1.3951]
[1646896988622,0.03097513,2594.3,2594.2,9.1045]
[1646896989024,0.00329376,2594.3,2594.2,9.1045]
[1646896989226,0.06058621,2594.9,2594.3,0.96467]
[1646896989425,0.00329375,2594.4,2594.3,1.9293357]
[1646896989624,0.00329375,2594.4,2594.3,1.9279959]
[1646896990426,0.06058621,2594.9,2594.3,1.9279959]
[1646896990630,0.0032947,2594.5,2594.3,1.9279959]
[1646896991627,0.96481,2594.8,2594.3,1.9279959]
[1646896991877,0.00329468,2594.5,2594.3,1.9279959]
[1646896992688,0.96481,2594.8,2594.3,1.9279959]
[1646896992879,0.96198589,2594.8,2594.3,1.9279959]
[1646896993084,0.00329468,2594.5,2594.3,1.9279959]
[1646896993880,0.05586371,2594.7,2594.3,6.81843828]
[1646896994080,0.00329446,2594.5,2594.3,6.81843828]
[1646896994280,0.00329446,2594.5,2594.4,4.88019038]
[1646896995080,0.05586371,2594.7,2594.4,4.88019038]
[1646896995530,0.00329444,2594.6,2594.5,1.09756433]
[1646896996336,0.05586371,2594.7,2594.5,1.09756433]
[1646896996536,0.05915812,2594.7,2594.4,4.88019038]
[1646896997539,0.05069798,2594.6,2594.4,4.88019038]
[1646896998338,0.05816649,2594.5,2594.2,7.7094]
[1646896998937,0.06146101,2594.5,2594.2,7.7094]
[1646896999979,0.05816649,2594.5,2594.2,7.7094]
[1646897000181,0.00329452,2594.5,2594.2,8.6742506]
[1646897000380,0.00329452,2594.5,2594.4,0.98880626]
[1646897001284,0.06038783,2594.7,2594.2,8.6742506]
[1646897001480,0.00329448,2594.6,2594.2,8.6742506]
[1646897002184,0.00329448,2594.6,2594.3,1.08988344]
[1646897002382,0.06038783,2594.7,2594.3,2.05470344]
[1646897002584,0.0032945,2594.5,2594.3,2.05470344]
[1646897003723,0.0032945,2594.5,2594.4,1.5]
[1646897004723,0.06038783,2594.7,2594.4,1.5]
[1646897004923,0.00329448,2594.6,2594.4,1.5]
[1646897005524,0.00329448,2594.6,2594.5,1.5]
[1646897005924,0.06038783,2594.7,2594.5,1.5]
[1646897006124,0.00329445,2594.7,2594.5,1.5]
[1646897007183,0.52517783,2594.8,2594.5,1.5]
[1646897007383,0.00329444,2594.7,2594.5,1.5]
[1646897007587,0.00329444,2594.7,2594.6,1.5]
[1646897008384,0.52517783,2594.8,2594.6,1.5]
[1646897008584,0.52847225,2594.8,2594.6,1.5]
[1646897009588,0.52517783,2594.8,2594.7,1.5]
[1646897009787,0.52847223,2594.8,2594.7,1.5]
[1646897010625,0.52847223,2594.8,2594.4,1.5]
[1646897010824,0.05320944,2594.7,2594.4,1.5]
[1646897011625,0.05320944,2594.7,2594.5,1.5]
[1646897012228,0.05650389,2594.7,2594.5,1.5]
[1646897013229,0.05320944,2594.7,2594.5,1.5]
[1646897013429,0.05650388,2594.7,2594.5,1.5]
[1646897014286,0.05320944,2594.7,2594.5,1.5]
[1646897014681,0.05650388,2594.7,2594.6,1.5]
[1646897015479,0.05320944,2594.7,2594.6,1.5]
[1646897016887,1.1863,2595.1,2594.7,74.9647146]
[1646897017089,9.06353082,2595.3,2594.9,0.0848042]
[1646897017285,9.0613,2595.3,2594.9,0.0848042]
[1646897017685,7.84903086,2595.6,2595.2,1.5]
[1646897017885,0.05583086,2595.6,2595.2,2.50723537]
[1646897018130,0.00990979,2595.6,2595.2,2.50723537]
[1646897018332,0.00990979,2595.6,2595.3,0.08722951]
[1646897018730,0.00990979,2595.6,2595.5,1.5]
[1646897019130,0.96444,2595.8,2595.5,1.5]
[1646897019429,0.00330889,2595.7,2595.5,1.5]
[1646897020432,0.96444,2595.8,2595.5,1.5]
[1646897020635,2.88428406,2596.7,2595.8,143.0]
[1646897020835,2.88428406,2596.7,2595.9,5.41302556]
[1646897020836,1.83580559,2596.7,2595.9,5.41302556]
[1646897021037,1.83580559,2596.7,2596.0,2.96209936]
[1646897021038,0.04035806,2596.2,2596.0,2.96209936]
[1646897021235,0.00223082,2597.1,2596.2,142.5]
[1646897021540,2.16669082,2597.4,2596.4,0.07660194]
[1646897021775,2.16669082,2597.4,2596.6,0.9639321]
[1646897021776,1.2006,2597.4,2596.6,0.9639321]
[1646897021980,0.04145838,2597.5,2596.6,0.9639321]
[1646897022182,0.04145838,2597.5,2596.5,2.00202071]
[1646897022379,0.96397,2597.1,2596.5,2.00202071]
[1646897022579,0.96397,2597.1,2596.9,1.5]
[1646897023382,1.92794,2597.3,2596.9,1.5]
[1646897023580,1.00982166,2597.4,2596.9,1.5]
[1646897024182,0.00349893,2597.3,2596.9,1.5]
[1646897024982,0.04741501,2597.3,2596.9,1.5]
[1646897025184,0.04391608,2597.3,2596.9,1.5]
[1646897025628,0.00349895,2597.2,2596.9,1.5]
[1646897025828,0.96409,2597.1,2596.9,1.49903481]
[1646897026627,0.96409,2597.1,2596.7,1.02024763]
[1646897026628,0.96758899,2597.1,2596.8,1.5]
[1646897027632,0.96409,2597.1,2596.7,2.52024763]
[1646897027834,0.96758901,2597.1,2596.7,2.52024763]
[1646897028532,0.96758901,2597.1,2596.7,1.5]
[1646897028733,0.96409,2597.1,2596.7,1.5]
[1646897028935,0.00339469,2597.0,2596.7,1.5]
[1646897029135,1.92837,2596.9,2596.7,1.5]
[1646897029375,0.96757469,2597.0,2596.8,5.97979192]
[1646897029575,0.96757469,2597.0,2596.8,2.68340596]
[1646897029576,0.00339469,2597.0,2596.8,2.68340596]
[1646897029980,0.0489042,2597.5,2596.8,2.68340596]
[1646897030176,0.00339469,2597.0,2596.8,2.68340596]
[1646897030575,0.00339469,2597.0,2596.9,1.5]
[1646897031277,0.97741672,2597.4,2596.9,1.5]
[1646897031278,0.96384,2597.4,2596.9,1.5]
[1646897031481,0.00339467,2597.1,2596.9,1.5]
[1646897032283,0.96384,2597.4,2596.9,1.8]
[1646897032783,0.00328771,2597.1,2596.9,1.8]
[1646897033729,0.96599082,2597.7,2597.0,8.29462215]
[1646897033926,0.01314887,2597.5,2597.1,1.04169765]
[1646897034126,0.01314887,2597.5,2597.2,4.79638596]
[1646897034327,0.01314887,2597.5,2597.3,0.08565592]
[1646897034728,1.08516272,2597.8,2597.3,0.08565592]
[1646897034927,0.00245934,2597.5,2597.3,0.08565592]
[1646897035329,0.00245934,2597.5,2597.3,2.01293082]
[1646897035530,0.00245934,2597.5,2597.4,1.57435755]
[1646897035929,1.92775,2597.7,2597.4,1.57435755]
[1646897036130,1.92775,2597.7,2597.4,1.5]
[1646897036330,0.00331898,2597.6,2597.4,1.5]
[1646897036778,1.20597887,2597.4,2596.9,1.5]
[1646897036984,0.96402,2597.3,2596.9,1.5]
[1646897037383,0.96733908,2597.3,2596.9,1.5]
[1646897037584,0.96733908,2597.3,2597.0,1.5]
[1646897037787,0.96733908,2597.3,2597.0,1.8]
[1646897038389,0.96402,2597.3,2597.0,1.8]
[1646897038685,0.96733908,2597.3,2597.0,1.8]
[1646897039685,0.96402,2597.3,2597.0,0.3]
[1646897039887,0.96733201,2597.3,2596.9,1.8]
[1646897040526,0.96733201,2597.3,2597.1,1.5]
[1646897040726,0.96402,2597.3,2597.1,1.5]
[1646897040926,0.00331203,2597.2,2597.1,1.5]
[1646897041931,0.96402,2597.3,2597.1,1.5]
[1646897042129,0.96733201,2597.3,2597.1,1.5]
[1646897043029,0.96733201,2597.3,2596.8,0.07847072]
[1646897043030,49.5,2597.2,2596.8,0.07847072]
[1646897043230,1.0133479,2597.0,2596.3,0.9641327]
[1646897043430,0.0521914,2596.8,2596.0,7.7042]
[1646897043633,3.0521914,2596.8,2596.0,7.7042]
[1646897043829,0.04414586,2596.6,2596.0,7.7042]
[1646897044029,0.90347626,2596.2,2596.0,7.7042]
[1646897044283,0.04739489,2596.1,2596.0,5.77823167]
[1646897045487,1.01190489,2596.1,2596.0,5.77823167]
[1646897045889,5.74716985,2596.1,2596.0,5.77823167]
[1646897046288,6.74716985,2596.1,2596.0,5.77823167]
[1646897046891,2.01190489,2596.1,2596.0,5.77823167]
[1646897047092,1.01190489,2596.1,2596.0,5.77823167]
[1646897049026,5.74716985,2596.1,2596.0,5.77823167]
[1646897049227,6.74716985,2596.1,2596.0,3.27012441]
[1646897049429,6.74716985,2596.1,2594.8,8.28915]
[1646897049430,49.5,2596.0,2594.8,8.28915]
[1646897049628,0.96465,2595.6,2594.8,8.28915]
[1646897049826,0.96465,2595.6,2594.8,1.92905]
[1646897050026,2.9293,2595.7,2594.8,1.92905]
[1646897050229,4.73526496,2595.9,2595.8,49.06846918]
[1646897050428,5.93071247,2595.9,2595.1,0.89660652]
[1646897050626,50.5,2596.0,2595.9,45.06928753]
[1646897050830,52.41778471,2596.0,2595.1,1.86118652]
[1646897051027,51.45320471,2596.0,2595.9,44.3177091]
[1646897051226,50.5,2596.0,2595.1,1.86118652]
[1646897052282,50.5,2596.0,2595.1,2.82571632]
[1646897052484,51.46458,2596.0,2595.1,2.82571632]
[1646897053285,51.46458,2596.0,2595.1,1.86118652]
[1646897053785,51.46458,2596.0,2595.1,2.82572462]
[1646897054587,1.96458,2596.0,2595.5,1.20022543]
[1646897055526,2.89720332,2596.2,2596.0,49.03542]
[1646897055926,2.89720332,2596.2,2595.5,1.20022543]
[1646897056325,2.89389,2596.2,2595.5,1.20022543]
[1646897056727,2.89720342,2596.2,2595.5,1.20022543]
[1646897057330,3.89720342,2596.2,2595.5,1.20022543]
[1646897057632,0.96453,2596.1,2595.5,1.20022543]
[1646897060078,0.96453,2596.1,2595.5,2.16466543]
[1646897060280,0.05495138,2596.0,2595.5,2.16466543]
[1646897060478,1.01219024,2596.1,2596.0,50.94504862]
[1646897060679,1.01219024,2596.1,2595.5,2.16466543]
[1646897060879,1.01219024,2596.1,2595.5,1.20022543]
[1646897062285,1.01219024,2596.1,2595.2,2.01720454]
[1646897062484,1.01219024,2596.1,2595.3,0.08525556]
[1646897063331,1.01219024,2596.1,2595.3,4.8297442]
[1646897063532,1.01219024,2596.1,2595.4,0.9645]
[1646897064730,1.01219024,2596.1,2595.6,1.11802379]
[1646897066133,3.89389,2596.2,2596.1,50.03547]
[1646897066333,3.89389,2596.2,2595.6,1.19095847]
[1646897066536,3.89689613,2596.2,2596.0,0.8749141]
[1646897066985,0.04323773,2596.4,2596.2,47.10310387]
[1646897067186,0.04323773,2596.4,2596.0,0.8749141]
[1646897067586,0.00300634,2596.2,2596.0,0.8749141]
[1646897067785,0.00300634,2596.2,2595.6,0.07293468]
[1646897067986,1.93213634,2596.2,2595.4,0.07721442]
[1646897068387,1.92913,2596.2,2595.4,0.07721442]
[1646897068786,0.96457,2596.1,2595.6,0.91634066]
[1646897068987,1.92913,2596.2,2596.1,50.03543]
[1646897069189,1.92913,2596.2,2595.6,0.91634066]
[1646897072137,1.92913,2596.2,2595.4,0.07721442]
[1646897073144,1.92913,2596.2,2595.8,1.04280391]
[1646897075989,0.00309566,2596.3,2596.2,49.07087]
[1646897076188,0.00309566,2596.3,2596.2,1.14534518]
[1646897076389,0.57127173,2596.6,2596.2,1.14534518]
[1646897076390,9.90677985,2596.9,2596.6,49.46108261]
[1646897076588,0.01237985,2596.9,2596.3,89.5]
[1646897076793,0.05404624,2597.1,2596.4,4.67237424]
[1646897076993,0.05404624,2597.1,2596.6,1.14033102]
[1646897077393,0.96417,2596.8,2596.6,1.14033102]
[1646897077794,0.96417,2596.8,2596.4,4.67237424]
[1646897078930,1.92833,2596.9,2596.8,50.03583]
[1646897079231,1.92833,2596.9,2596.5,0.87313642]
[1646897079437,1.92833,2596.9,2596.6,4.65868832]
[1646897079636,0.96416,2597.0,2596.9,49.07167]
[1646897079836,0.96416,2597.0,2596.7,118.58076524]
[1646897080035,0.58420322,2597.4,2597.2,50.03584]
[1646897080237,0.58420322,2597.4,2596.8,0.08911968]
[1646897080435,0.58420322,2597.4,2596.8,4.747808]
[1646897080634,0.96399,2597.3,2596.8,0.0735741]
[1646897080835,0.96399,2597.3,2596.8,4.73226242]
[1646897081035,0.96399,2597.3,2596.9,1.06647434]
[1646897081880,0.00348187,2597.2,2596.9,1.06647434]
[1646897082087,0.96399,2597.3,2597.2,50.99651813]
[1646897082481,0.96399,2597.3,2596.9,1.06647434]
[1646897083482,0.96399,2597.3,2596.4,4.65868832]
[1646897083681,0.96399,2597.3,2596.5,0.07917305]
[1646897084984,0.96399,2597.3,2596.6,1.09780717]
[1646897085186,0.96399,2597.3,2596.7,4.64109036]
[1646897085639,2.93899966,2597.5,2596.7,4.64109036]
[1646897085640,0.0136053,2597.5,2597.3,50.03260848]
[1646897085839,0.0136053,2597.5,2597.4,4.72789645]
[1646897086038,0.00222288,2598.1,2597.9,50.9863947]
[1646897086238,0.3852,2598.6,2597.9,50.9863947]
[1646897086239,0.00222288,2598.3,2597.9,50.9363947]
[1646897086538,0.00222288,2598.3,2597.5,135.0]
[1646897086539,0.60347592,2598.7,2597.6,0.08376132]
[1646897086740,1.92739,2598.2,2597.9,1.05844528]
[1646897086938,1.92739,2598.2,2597.8,0.96359]
[1646897087144,1.97055931,2598.2,2597.6,4.64109036]
[1646897087339,1.92739,2598.2,2597.6,4.71595572]
[1646897088139,1.92739,2598.2,2597.6,5.74639452]
[1646897089377,1.92739,2598.2,2597.6,5.73286284]
[1646897089579,1.92739,2598.2,2597.6,1.10530416]
[1646897089779,1.92739,2598.2,2597.6,5.73286284]
[1646897089977,1.92739,2598.2,2597.6,1.10530416]
[1646897090378,0.96377,2597.9,2597.6,1.10530416]
[1646897090782,0.00328664,2598.0,2597.9,50.03623]
[1646897090981,0.00328664,2598.0,2597.7,27.5]
[1646897091178,1.92739,2598.2,2597.6,1.0304388]
[1646897091378,3.15181032,2598.2,2597.6,1.0304388]
[1646897091578,0.003048,2598.1,2597.6,1.0304388]
[1646897091782,0.003048,2598.1,2597.3,2.015799]
[1646897091783,1.92757,2598.0,2597.3,0.088439]
[1646897091982,4.61409228,2597.9,2597.3,0.088439]
[1646897092183,1.92757,2598.0,2597.3,0.088439]
[1646897092384,1.92757,2598.0,2597.3,0.08539009]
[1646897092783,0.00304813,2597.7,2597.4,1.2210168]
[1646897093039,1.92757,2598.0,2597.7,50.03315187]
[1646897093234,1.92757,2598.0,2597.5,20.0]
[1646897093433,1.92757,2598.0,2597.4,1.2210168]
[1646897094236,1.92759,2597.9,2597.4,1.2210168]
[1646897094834,1.92759,2597.9,2597.5,0.07468938]
[1646897095038,0.96378,2598.0,2597.5,0.07468938]
[1646897096038,0.96378,2598.0,2597.5,1.03837938]
[1646897096237,0.96378,2598.0,2597.7,0.07678816]
[1646897096437,0.00329195,2597.9,2597.7,0.07678816]
[1646897096638,0.96378,2598.0,2597.9,50.99670805]
[1646897096882,0.96378,2598.0,2597.7,0.07678816]
[1646897098705,1.92746,2598.1,2598.0,50.03622]
[1646897098885,1.92746,2598.1,2597.7,1.04041816]
[1646897099284,1.92746,2598.1,2597.7,0.07678816]
[1646897099486,1.92746,2598.1,2597.5,0.37230465]
[1646897099687,1.92746,2598.1,2597.5,0.37142371]
[1646897099886,1.92746,2598.1,2597.5,0.37230465]
[1646897100929,1.92746,2598.1,2597.5,0.37142371]
[1646897101131,0.00330673,2598.0,2597.5,0.37436017]
[1646897101935,0.96372,2597.9,2597.5,0.37436017]
[1646897102136,0.96372,2597.9,2597.5,1.31892568]
[1646897102337,0.00337213,2598.0,2597.9,50.03628]
[1646897102636,0.00337213,2598.0,2597.6,0.08496038]
[1646897102839,1.92746,2598.1,2597.6,0.08496038]
[1646897105491,1.92746,2598.1,2597.4,0.07596854]
[1646897105786,2.48246,2598.1,2597.4,0.07596854]
[1646897105988,2.48595603,2598.1,2597.6,0.0034968]
[1646897106589,0.96388,2597.7,2597.6,0.0034968]
[1646897106795,49.5,2597.6,2597.0,1.2255]
[1646897106993,49.5,2597.6,2596.9,9.19046644]
[1646897106994,0.555,2597.5,2596.9,9.19046644]
[1646897107196,0.555,2597.5,2596.9,0.07666644]
[1646897107393,3.47731202,2597.5,2596.9,0.07666644]
[1646897107593,3.47731202,2597.5,2596.8,1.15609789]
[1646897107795,2.52139288,2597.5,2596.9,0.08784021]
[1646897108030,1.51917,2597.5,2596.9,0.08784021]
[1646897108228,2.51917,2597.5,2596.9,0.08784021]
[1646897108427,1.51917,2597.5,2596.9,0.08784021]
[1646897108629,2.51917,2597.5,2596.9,0.08784021]
[1646897108828,1.51917,2597.5,2596.9,0.08784021]
[1646897109629,1.01446636,2597.3,2596.9,0.08784021]
[1646897109829,0.96409,2597.2,2596.9,0.08784021]
[1646897110029,0.96409,2597.2,2596.4,1.158]
[1646897110030,6.08950334,2597.2,2596.7,0.07494008]
[1646897110232,6.08950334,2597.2,2596.4,0.37597175]
[1646897110830,6.08950334,2597.2,2596.8,0.00349695]
[1646897110831,1.51909,2597.2,2596.8,0.00349695]
[1646897111630,1.51909,2597.2,2596.5,0.0839709]
[1646897111883,1.51909,2597.2,2596.9,0.00349693]
[1646897112883,1.51909,2597.2,2596.5,0.0839709]
[1646897113085,1.51909,2597.2,2596.9,0.00349691]
[1646897113984,1.51909,2597.2,2596.3,1.92829]
[1646897113985,6.08950334,2597.2,2596.2,0.06952456]
[1646897114386,7.08950334,2597.2,2596.9,0.00349691]
[1646897114588,2.51909,2597.2,2596.9,0.00349691]
[1646897114787,1.51909,2597.2,2596.9,0.00349691]
[1646897114986,7.08950334,2597.2,2596.9,0.00349691]
[1646897115186,7.08950334,2597.2,2596.2,0.06952456]
[1646897115633,7.08950334,2597.2,2596.9,0.00319094]
[1646897116238,49.54150798,2597.1,2596.0,1.194]
[1646897116439,0.96438,2596.8,2596.0,1.194]
[1646897116640,5.12541334,2596.7,2595.9,0.3]
[1646897116839,5.12541334,2596.7,2596.0,0.06950185]
[1646897117043,0.555,2596.7,2596.0,0.06950185]
[1646897118443,2.10630938,2596.5,2596.0,0.06950185]
[1646897119042,2.10630938,2596.5,2596.1,0.003489]
[1646897119979,2.10630938,2596.5,2596.0,0.06950185]
[1646897120585,2.10630938,2596.5,2596.2,0.00348898]
[1646897120787,0.68635403,2596.6,2596.2,0.00348898]
[1646897121186,1.76283234,2596.8,2596.4,53.5]
[1646897121390,0.56643234,2596.8,2596.4,53.57418555]
[1646897121589,2.89312,2597.0,2596.8,50.43356766]
[1646897121788,0.96422,2596.9,2596.8,50.43356766]
[1646897121987,0.96422,2596.9,2596.5,1.09100368]
[1646897123943,2.89312,2597.0,2596.9,50.03578]
[1646897124150,7.49217776,2597.5,2596.9,50.1052794]
[1646897124151,0.57540064,2597.5,2596.9,50.1052794]
[1646897124348,0.57317776,2597.5,2596.9,0.0694994]
[1646897124547,1.53705776,2597.5,2596.9,0.0694994]
[1646897125546,1.53705776,2597.5,2596.8,1.93119302]
[1646897125547,1.53705776,2597.5,2597.1,0.07340231]
[1646897126151,1.53705776,2597.5,2597.0,1.15319191]
[1646897126348,1.53705776,2597.5,2596.8,0.07511136]
[1646897127386,1.53705776,2597.5,2596.8,1.16715313]
[1646897127586,1.53705776,2597.5,2596.8,1.17033152]
[1646897128587,1.53705776,2597.5,2596.8,1.16715313]
[1646897128790,1.53705776,2597.5,2596.8,1.17021574]
[1646897129787,1.53705776,2597.5,2596.8,1.16715313]
[1646897129987,1.53705776,2597.5,2596.8,1.17021574]
[1646897131045,1.53705776,2597.5,2596.8,1.16715313]
[1646897131343,1.53705776,2597.5,2596.8,0.0746867]
[1646897132141,1.53705776,2597.5,2596.8,0.07160295]
[1646897135991,1.53705776,2597.5,2596.8,0.07496722]
[1646897136991,1.53705776,2597.5,2596.8,0.07160295]
[1646897137193,1.53705776,2597.5,2596.8,0.07496722]
[1646897138136,1.53705776,2597.5,2596.8,0.07160295]
[1646897138333,1.53705776,2597.5,2596.8,0.07478354]
[1646897138536,0.27099196,2597.4,2596.8,0.07478354]
[1646897138834,0.9641,2597.3,2596.8,0.07478354]
[1646897139034,2.19918196,2597.4,2597.3,50.0359]
[1646897139236,1.92819,2597.4,2596.8,0.07478354]
[1646897139434,2.48319,2597.4,2596.8,0.07160295]
[1646897139635,2.48319,2597.4,2596.8,0.07478346]
[1646897140340,3.71666467,2597.4,2596.8,0.07478346]
[1646897140541,3.71666467,2597.4,2596.8,0.07160295]
[1646897140740,4.71666467,2597.4,2596.8,0.07160295]
[1646897140939,4.71666467,2597.4,2596.8,0.07468808]
[1646897141790,4.71666467,2597.4,2596.8,0.07160295]
[1646897141992,4.71666467,2597.4,2596.8,0.07470039]
[1646897142194,3.48319,2597.4,2596.8,0.07470039]
[1646897142393,2.48319,2597.4,2596.8,0.07470039]
[1646897142592,3.48319,2597.4,2596.8,0.07470039]
[1646897142794,3.48319,2597.4,2596.8,5.98243133]
[1646897142795,2.48319,2597.4,2596.8,5.98243133]
[1646897142993,2.48319,2597.4,2597.0,0.07711424]
[1646897143793,1.92819,2597.4,2597.0,0.07711424]
[1646897145197,5.05902615,2597.3,2596.8,0.00290166]
[1646897145400,0.59889843,2597.3,2596.5,0.07167882]
[1646897145637,0.59889843,2597.3,2596.8,0.00290166]
[1646897146431,2.89282,2597.2,2596.8,0.00290166]
[1646897146633,3.44782,2597.2,2596.6,0.07268929]
[1646897146836,3.44782,2597.2,2596.8,0.00290166]
[1646897147835,3.44782,2597.2,2596.6,0.07268929]
[1646897148036,3.44782,2597.2,2596.8,0.00296066]
[1646897148535,3.67263202,2597.2,2596.8,0.00296066]
[1646897148936,3.67263202,2597.2,2596.6,0.07268929]
[1646897149135,3.67263202,2597.2,2596.8,0.00296066]
[1646897150188,3.67263202,2597.2,2596.6,1.03691929]
[1646897150189,3.44782,2597.2,2596.6,1.03691929]
[1646897150387,3.44782,2597.2,2596.8,0.00296066]
[1646897151088,0.04389843,2597.3,2596.8,0.00296066]
[1646897151089,0.96407,2597.3,2597.2,44.60718]
[1646897151489,0.57317776,2597.5,2597.3,50.03593]
[1646897151892,0.57317776,2597.5,2596.8,0.00294738]
[1646897152491,1.92811,2597.4,2596.4,0.07240439]
[1646897152694,3.07733911,2597.4,2596.6,0.07122871]
[1646897153048,3.07956199,2597.4,2596.8,0.00294738]